fUST/lending_fUST_20240508
["ID","MTS","AMOUNT","RATE_DAILY","PERIOD"]
[326575491,1715116236560,-36633.11704382,0.00016323,2]
[326575493,1715116236572,-612.0,0.00016323,2]
[326575495,1715116236587,-18309.88295618,0.00016323,2]
[326575497,1715116236597,-219.12467874,0.00016327,2]
[326575499,1715116236607,-1000.0,0.00016335,2]
[326575501,1715116236618,-217.78112,0.00016352,2]
[326575503,1715116236628,-715.91931556,0.00016364,2]
[326575505,1715116236639,-1000.0,0.0001637,2]
[326575507,1715116236649,-1000.0,0.00016377,2]
[326575508,1715116236659,-1000.0,0.00016382,2]
[326575511,1715116236670,-1000.0,0.00016383,2]
[326575512,1715116236680,-1000.0,0.00016397,2]
[326575514,1715116236691,-1000.0,0.00016401,2]
[326575516,1715116236702,-1000.0,0.00016405,2]
[326575518,1715116236713,-369.26915092,0.00016416,2]
[326575520,1715116236723,-189.83684019,0.00016417,2]
[326575522,1715116236733,-265.69357442,0.00016417,2]
[326575524,1715116236744,-155.08271801,0.00016417,2]
[326575526,1715116236755,-220.36962811,0.00016417,2]
[326575528,1715116236766,-1019.99650869,0.00016417,2]
[326575530,1715116236776,-468.67293908,0.00016417,2]
[326575532,1715116236786,-1711.8843747,0.00016417,2]
[326575534,1715116236796,-1442.93,0.00016417,2]
[326575536,1715116236807,-5014.93,0.00016417,2]
[326575538,1715116236818,-500.0,0.00016417,2]
[326575540,1715116236832,-6936.23,0.00016417,2]
[326575542,1715116236842,-500.0,0.00016417,2]
[326575543,1715116236853,-713.0,0.00016417,2]
[326575545,1715116236864,-500.0,0.00016417,2]
[326575548,1715116236875,-884.01,0.00016417,2]
[326575550,1715116236887,-964.21,0.00016417,2]
[326575552,1715116236898,-500.0,0.00016417,2]
[326575554,1715116236909,-500.0,0.00016417,2]
[326575555,1715116236919,-511.93,0.00016417,2]
[326575557,1715116236930,-500.0,0.00016417,2]
[326575559,1715116236941,-500.0,0.00016417,2]
[326575561,1715116236953,-4632.07,0.00016417,2]
[326575562,1715116236963,-1727.79,0.00016417,2]
[326575563,1715116236974,-1608.72,0.00016417,2]
[326575564,1715116236984,-500.0,0.00016417,2]
[326575565,1715116236995,-1318.39,0.00016417,2]
[326575566,1715116237006,-627.6,0.00016417,2]
[326575567,1715116237017,-500.0,0.00016417,2]
[326575568,1715116237027,-500.0,0.00016417,2]
[326575569,1715116237038,-249.97469689,0.00016418,2]
[326575570,1715116237048,-500.0,0.00016418,2]
[326575571,1715116237059,-500.0,0.00016418,2]
[326575572,1715116237069,-500.0,0.00016418,2]
[326575573,1715116237081,-500.0,0.00016418,2]
[326575574,1715116237091,-500.0,0.00016418,2]
[326575575,1715116237102,-380.87625861,0.00016418,2]
[326575576,1715116237112,-1080.17,0.00016418,2]
[326575577,1715116237122,-1000.0,0.00016418,2]
[326575578,1715116237133,-501.85532561,0.00016418,2]
[326575579,1715116237143,-521.23581417,0.00016418,2]
[326575580,1715116237154,-500.0,0.00016418,2]
[326575581,1715116237166,-500.0,0.00016418,2]
[326575582,1715116237176,-328.6227342,0.00016418,2]
[326575583,1715116237187,-500.0,0.00016418,2]
[326575584,1715116237197,-500.0,0.00016418,2]
[326575585,1715116237207,-500.0,0.00016418,2]
[326575586,1715116237218,-500.0,0.00016418,2]
[326575587,1715116237229,-500.0,0.00016418,2]
[326575588,1715116237239,-561.33581826,0.00016418,2]
[326575589,1715116237249,-529.32238476,0.00016418,2]
[326575590,1715116237261,-500.0,0.00016418,2]
[326575591,1715116237272,-500.0,0.00016418,2]
[326575607,1715116237465,-500.0,0.00016418,2]
[326575608,1715116237476,-500.0,0.00016418,2]
[326575609,1715116237487,-198.91528311,0.00016418,2]
[326575610,1715116237498,-500.0,0.00016418,2]
[326575611,1715116237509,-559.59,0.00016418,2]
[326575612,1715116237519,-500.0,0.00016418,2]
[326575613,1715116237529,-500.0,0.00016418,2]
[326575614,1715116237540,-500.0,0.00016418,2]
[326575615,1715116237550,-500.0,0.00016418,2]
[326575616,1715116237561,-500.0,0.00016418,2]
[326575617,1715116237571,-500.0,0.00016418,2]
[326575618,1715116237580,-500.0,0.00016418,2]
[326575619,1715116237590,-500.0,0.00016418,2]
[326575620,1715116237601,-500.0,0.00016418,2]
[326575621,1715116237611,-500.0,0.00016418,2]
[326575622,1715116237621,-500.0,0.00016418,2]
[326575623,1715116237631,-500.0,0.00016418,2]
[326575624,1715116237642,-500.0,0.00016418,2]
[326575625,1715116237652,-500.0,0.00016418,2]
[326575626,1715116237663,-500.0,0.00016418,2]
[326575627,1715116237674,-500.0,0.00016418,2]
[326575628,1715116237684,-505.95654971,0.00016418,2]
[326575629,1715116237694,-815.92,0.00016418,2]
[326575630,1715116237705,-504.35390128,0.00016418,2]
[326575631,1715116237715,-500.0,0.00016418,2]
[326575632,1715116237726,-500.0,0.00016418,2]
[326575633,1715116237736,-500.0,0.00016418,2]
[326575634,1715116237747,-186.16400501,0.00016418,2]
[326575635,1715116237757,-500.0,0.00016418,2]
[326575636,1715116237767,-547.36,0.00016418,2]
[326575637,1715116237778,-500.0,0.00016418,2]
[326575638,1715116237788,-151.0,0.00016418,2]
[326575639,1715116237798,-500.0,0.00016418,2]
[326575640,1715116237809,-2171.45,0.00016418,2]
[326575641,1715116237820,-500.0,0.00016418,2]
[326575642,1715116237831,-500.0,0.00016418,2]
[326575643,1715116237841,-500.0,0.00016418,2]
[326575644,1715116237851,-500.0,0.00016418,2]
[326575645,1715116237862,-500.0,0.00016418,2]
[326575646,1715116237872,-588.33,0.00016418,2]
[326575647,1715116237882,-523.99850363,0.00016418,2]
[326575648,1715116237892,-1075.88,0.00016418,2]
[326575649,1715116237904,-596.75,0.00016418,2]
[326575650,1715116237914,-500.0,0.00016418,2]
[326575651,1715116237925,-616.20792192,0.00016418,2]
[326575652,1715116237936,-500.0,0.00016418,2]
[326575653,1715116237946,-500.0,0.00016418,2]
[326575654,1715116237956,-500.0,0.00016418,2]
[326575655,1715116237966,-500.0,0.00016418,2]
[326575656,1715116237976,-154.64431807,0.00016418,2]
[326575657,1715116237987,-500.0,0.00016418,2]
[326575658,1715116237996,-500.0,0.00016418,2]
[326575659,1715116238006,-549.85243377,0.00016418,2]
[326575660,1715116238018,-500.0,0.00016418,2]
[326575661,1715116238029,-500.0,0.00016418,2]
[326575662,1715116238039,-500.0,0.00016418,2]
[326575663,1715116238049,-500.0,0.00016418,2]
[326575664,1715116238060,-500.0,0.00016418,2]
[326575665,1715116238071,-500.0,0.00016418,2]
[326575666,1715116238082,-500.0,0.00016418,2]
[326575667,1715116238092,-500.0,0.00016418,2]
[326575668,1715116238102,-500.0,0.00016418,2]
[326575669,1715116238112,-933.17,0.00016418,2]
[326575670,1715116238123,-500.0,0.00016418,2]
[326575671,1715116238133,-500.0,0.00016418,2]
[326575672,1715116238144,-500.0,0.00016418,2]
[326575673,1715116238155,-500.0,0.00016418,2]
[326575674,1715116238165,-500.0,0.00016418,2]
[326575675,1715116238175,-500.0,0.00016418,2]
[326575676,1715116238186,-500.0,0.00016418,2]
[326575677,1715116238197,-1708.15,0.00016418,2]
[326575678,1715116238207,-500.0,0.00016418,2]
[326575679,1715116238218,-500.0,0.00016418,2]
[326575680,1715116238228,-500.0,0.00016418,2]
[326575681,1715116238239,-500.0,0.00016418,2]
[326575682,1715116238250,-2468.39,0.00016418,2]
[326575683,1715116238261,-500.0,0.00016418,2]
[326575684,1715116238272,-503.14843446,0.00016418,2]
[326575685,1715116238282,-500.0,0.00016418,2]
[326575686,1715116238293,-502.16644833,0.00016418,2]
[326575687,1715116238304,-500.0,0.00016418,2]
[326575688,1715116238314,-500.0,0.00016418,2]
[326575689,1715116238325,-500.0,0.00016418,2]
[326575690,1715116238335,-500.0,0.00016418,2]
[326575691,1715116238345,-500.0,0.00016418,2]
[326575692,1715116238355,-500.0,0.00016418,2]
[326575693,1715116238369,-500.0,0.00016418,2]
[326575694,1715116238380,-500.0,0.00016418,2]
[326575695,1715116238391,-500.0,0.00016418,2]
[326575696,1715116238402,-500.0,0.00016418,2]
[326575697,1715116238413,-500.0,0.00016418,2]
[326575698,1715116238423,-500.0,0.00016418,2]
[326575699,1715116238433,-501.28235127,0.00016418,2]
[326575700,1715116238444,-500.0,0.00016418,2]
[326575701,1715116238454,-500.0,0.00016418,2]
[326575702,1715116238465,-750.52,0.00016418,2]
[326575703,1715116238475,-563.09,0.00016418,2]
[326575704,1715116238486,-500.0,0.00016418,2]
[326575705,1715116238496,-962.14,0.00016418,2]
[326575706,1715116238506,-500.0,0.00016418,2]
[326575707,1715116238518,-500.0,0.00016418,2]
[326575708,1715116238529,-500.0,0.00016418,2]
[326575709,1715116238539,-500.0,0.00016418,2]
[326575710,1715116238550,-500.0,0.00016418,2]
[326575711,1715116238560,-500.85123927,0.00016418,2]
[326575712,1715116238571,-500.0,0.00016418,2]
[326575713,1715116238581,-500.0,0.00016418,2]
[326575714,1715116238592,-500.0,0.00016418,2]
[326575715,1715116238603,-3889.55,0.00016418,2]
[326575716,1715116238614,-500.0,0.00016418,2]
[326575717,1715116238624,-500.0,0.00016418,2]
[326575718,1715116238635,-500.0,0.00016418,2]
[326575719,1715116238645,-500.0,0.00016418,2]
[326575720,1715116238655,-500.0,0.00016418,2]
[326575721,1715116238666,-2177.42,0.00016418,2]
[326575722,1715116238677,-197.59070593,0.00016418,2]
[326575723,1715116238686,-4508.22,0.00016418,2]
[326575724,1715116238696,-510.73,0.00016418,2]
[326575725,1715116238705,-500.0,0.00016418,2]
[326575726,1715116238712,-500.0,0.00016418,2]
[326575727,1715116238720,-500.0,0.00016418,2]
[326575728,1715116238728,-500.0,0.00016418,2]
[326575729,1715116238735,-503.80525209,0.00016418,2]
[326575730,1715116238745,-793.44154841,0.00016419,2]
[326575731,1715116238752,-300.0,0.00016419,2]
[326575732,1715116238760,-351.18588152,0.00016419,2]
[326575733,1715116238769,-155.01450888,0.00016419,2]
[326575734,1715116238778,-186.19877629,0.00016419,2]
[326575735,1715116238788,-155.31761192,0.00016419,2]
[326575736,1715116238798,-194.04864912,0.00016419,2]
[326575737,1715116238805,-353.5162105,0.00016419,2]
[326575738,1715116238814,-5865.91791066,0.00016419,2]
[326575739,1715116238826,-573.14575365,0.00016419,2]
[326575740,1715116238835,-525.85026854,0.00016419,2]
[326575741,1715116238844,-284.84730443,0.00016419,2]
[326575742,1715116238853,-208.89971363,0.00016419,2]
[326575743,1715116238861,-1203.54975148,0.00016419,2]
[326575744,1715116238870,-172.68942306,0.00016419,2]
[326575745,1715116238880,-234.34094268,0.00016419,2]
[326575746,1715116238888,-655.20171601,0.00016419,2]
[326575747,1715116238896,-196.29816724,0.00016419,2]
[326575748,1715116238905,-283.95389061,0.00016419,2]
[326575749,1715116238914,-1872.6805087,0.00016419,2]
[326575750,1715116238922,-1349.27201999,0.00016419,2]
[326575751,1715116238930,-1755.20791476,0.00016419,2]
[326575752,1715116238939,-5004.9933269,0.00016419,2]
[326575753,1715116238949,-583.66545878,0.00016419,2]
[326575754,1715116238956,-516.47256022,0.00016419,2]
[326575755,1715116238964,-163.74484042,0.00016419,2]
[326575756,1715116238973,-893.87701251,0.00016419,2]
[326575757,1715116238982,-508.91365282,0.00016419,2]
[326575758,1715116238991,-190.14000029,0.00016419,2]
[326575759,1715116239000,-1318.39,0.00016419,2]
[326575760,1715116239010,-560.36009638,0.0001642,2]
[326575761,1715116239020,-500.0,0.0001642,2]
[326575762,1715116239031,-500.0,0.0001642,2]
[326575763,1715116239042,-507.19453145,0.0001642,2]
[326575764,1715116239052,-500.0,0.0001642,2]
[326575765,1715116239061,-370.19826264,0.0001642,2]
[326575766,1715116239072,-500.0,0.0001642,2]
[326575767,1715116239082,-500.0,0.0001642,2]
[326575768,1715116239093,-500.0,0.0001642,2]
[326575769,1715116239105,-500.0,0.0001642,2]
[326575770,1715116239115,-500.0,0.0001642,2]
[326575771,1715116239127,-500.0,0.0001642,2]
[326575772,1715116239138,-500.0,0.0001642,2]
[326575773,1715116239150,-500.0,0.0001642,2]
[326575774,1715116239161,-500.0,0.0001642,2]
[326575775,1715116239172,-500.0,0.0001642,2]
[326575776,1715116239183,-500.0,0.0001642,2]
[326575777,1715116239194,-500.0,0.0001642,2]
[326575778,1715116239204,-500.0,0.0001642,2]
[326575779,1715116239215,-292.52309273,0.0001642,2]
[326575780,1715116239226,-3637.97,0.0001642,2]
[326575781,1715116239236,-500.0,0.0001642,2]
[326575782,1715116239247,-3578.53,0.0001642,2]
[326575783,1715116239257,-500.0,0.0001642,2]
[326575787,1715116239270,-500.0,0.0001642,2]
[326575791,1715116239280,-500.0,0.0001642,2]
[326575795,1715116239291,-500.0,0.0001642,2]
[326575799,1715116239303,-500.0,0.0001642,2]
[326575802,1715116239313,-500.0,0.0001642,2]
[326575805,1715116239325,-500.0,0.0001642,2]
[326575807,1715116239336,-500.0,0.0001642,2]
[326575810,1715116239348,-500.0,0.0001642,2]
[326575812,1715116239362,-500.0,0.0001642,2]
[326575815,1715116239373,-500.0,0.0001642,2]
[326575818,1715116239384,-500.0,0.0001642,2]
[326575821,1715116239394,-500.0,0.0001642,2]
[326575824,1715116239404,-3520.96,0.0001642,2]
[326575825,1715116239414,-500.0,0.0001642,2]
[326575828,1715116239424,-500.0,0.0001642,2]
[326575830,1715116239435,-500.0,0.0001642,2]
[326575832,1715116239445,-500.0,0.0001642,2]
[326575834,1715116239455,-500.0,0.0001642,2]
[326575835,1715116239465,-500.0,0.0001642,2]
[326575837,1715116239476,-500.0,0.0001642,2]
[326575838,1715116239487,-500.0,0.0001642,2]
[326575840,1715116239498,-500.0,0.0001642,2]
[326575842,1715116239508,-501.16993191,0.0001642,2]
[326575844,1715116239520,-500.0,0.0001642,2]
[326575846,1715116239530,-500.0,0.0001642,2]
[326575848,1715116239541,-500.0,0.0001642,2]
[326575850,1715116239552,-500.0,0.0001642,2]
[326575852,1715116239562,-1239.16,0.0001642,2]
[326575853,1715116239572,-3826.83,0.0001642,2]
[326575855,1715116239582,-500.0,0.0001642,2]
[326575857,1715116239592,-500.0,0.0001642,2]
[326575859,1715116239602,-500.0,0.0001642,2]
[326575861,1715116239612,-500.0,0.0001642,2]
[326575863,1715116239623,-425.10317935,0.0001642,2]
[326575865,1715116239633,-500.0,0.0001642,2]
[326575867,1715116239644,-569.41,0.0001642,2]
[326575869,1715116239654,-500.0,0.0001642,2]
[326575871,1715116239665,-500.0,0.0001642,2]
[326575873,1715116239676,-500.0,0.0001642,2]
[326575875,1715116239686,-500.0,0.0001642,2]
[326575877,1715116239697,-397.26491137,0.0001642,2]
[326575879,1715116239708,-500.0,0.0001642,2]
[326575881,1715116239718,-500.0,0.0001642,2]
[326575882,1715116239728,-2122.03,0.0001642,2]
[326575884,1715116239738,-1318.39,0.0001642,2]
[326575886,1715116239749,-648.87272205,0.0001642,2]
[326575888,1715116239760,-1318.39,0.0001642,2]
[326575889,1715116239771,-23516.81,0.0001642,2]
[326575890,1715116239781,-500.0,0.0001642,2]
[326575891,1715116239791,-167.85937447,0.00016421,5]
[326575892,1715116239801,-531.62756016,0.00016421,2]
[326575893,1715116239812,-155.01169657,0.00016421,2]
[326575894,1715116239824,-351.95095383,0.00016421,2]
[326575895,1715116239834,-475.62429208,0.00016421,2]
[326575896,1715116239844,-154.7623062,0.00016421,2]
[326575897,1715116239854,-53386.96444043,0.00016421,2]
[326575898,1715116239865,-500.0,0.00016421,2]
[326575899,1715116239876,-245.52,0.00016421,2]
[326575900,1715116239886,-1318.39,0.00016421,2]
[326575901,1715116239898,-1318.39,0.00016421,2]
[326575902,1715116239908,-1318.39,0.00016421,2]
[326575903,1715116239918,-22240.23991987,0.00016422,2]
[326575904,1715116239928,-500.0,0.00016422,2]
[326575905,1715116239938,-500.0,0.00016422,2]
[326575906,1715116239948,-500.0,0.00016422,2]
[326575907,1715116239958,-500.0,0.00016422,2]
[326575908,1715116239970,-500.0,0.00016422,2]
[326575909,1715116239980,-529.93266426,0.00016422,2]
[326575910,1715116239990,-500.0,0.00016422,2]
[326575911,1715116240002,-500.0,0.00016422,2]
[326575912,1715116240014,-500.0,0.00016422,2]
[326575913,1715116240026,-636.44,0.00016422,2]
[326575914,1715116240036,-500.0,0.00016422,2]
[326575915,1715116240046,-500.0,0.00016422,2]
[326575916,1715116240056,-871.1,0.00016422,2]
[326575917,1715116240067,-500.0,0.00016422,2]
[326575918,1715116240078,-500.0,0.00016422,2]
[326575919,1715116240089,-1641.05,0.00016422,2]
[326575920,1715116240099,-500.0,0.00016422,2]
[326575921,1715116240109,-500.0,0.00016422,2]
[326575922,1715116240120,-500.0,0.00016422,2]
[326575923,1715116240131,-500.0,0.00016422,2]
[326575924,1715116240141,-500.0,0.00016422,2]
[326575925,1715116240151,-500.0,0.00016422,2]
[326575926,1715116240162,-500.0,0.00016422,2]
[326575927,1715116240172,-491.78109955,0.00016422,2]
[326575928,1715116240182,-500.0,0.00016422,2]
[326575929,1715116240193,-500.0,0.00016422,2]
[326575930,1715116240203,-500.0,0.00016422,2]
[326575931,1715116240214,-500.0,0.00016422,2]
[326575932,1715116240224,-524.97275874,0.00016422,2]
[326575933,1715116240235,-500.0,0.00016422,2]
[326575934,1715116240246,-500.0,0.00016422,2]
[326575935,1715116240257,-623.57,0.00016422,2]
[326575936,1715116240272,-500.0,0.00016422,2]
[326575937,1715116240283,-500.0,0.00016422,2]
[326575938,1715116240294,-500.0,0.00016422,2]
[326575939,1715116240305,-500.0,0.00016422,2]
[326575940,1715116240317,-500.0,0.00016422,2]
[326575941,1715116240329,-500.0,0.00016422,2]
[326575942,1715116240339,-151.0,0.00016422,2]
[326575943,1715116240350,-500.0,0.00016422,2]
[326575944,1715116240364,-500.0,0.00016422,2]
[326575945,1715116240374,-153.091258,0.00016422,2]
[326575946,1715116240385,-500.0,0.00016422,2]
[326575947,1715116240395,-1222.17,0.00016422,2]
[326575948,1715116240405,-500.0,0.00016422,2]
[326575949,1715116240416,-500.0,0.00016422,2]
[326575950,1715116240426,-500.0,0.00016422,2]
[326575951,1715116240436,-1177.74,0.00016422,2]
[326575952,1715116240446,-500.0,0.00016422,2]
[326575953,1715116240456,-500.0,0.00016422,2]
[326575954,1715116240466,-500.0,0.00016422,2]
[326575955,1715116240476,-6956.44,0.00016422,2]
[326575956,1715116240486,-500.0,0.00016422,2]
[326575957,1715116240497,-500.0,0.00016422,2]
[326575958,1715116240507,-500.0,0.00016422,2]
[326575959,1715116240518,-514.24509482,0.00016422,2]
[326575960,1715116240527,-151.0,0.00016422,2]
[326575961,1715116240537,-500.0,0.00016422,2]
[326575962,1715116240547,-500.0,0.00016422,2]
[326575963,1715116240556,-500.0,0.00016422,2]
[326575964,1715116240567,-500.0,0.00016422,2]
[326575965,1715116240577,-178.024163,0.00016422,2]
[326575966,1715116240587,-178.024163,0.00016422,2]
[326575967,1715116240598,-273.651179,0.00016422,2]
[326575968,1715116240608,-1808.74,0.00016422,2]
[326575969,1715116240617,-273.651179,0.00016422,2]
[326575970,1715116240628,-500.0,0.00016422,2]
[326575971,1715116240638,-500.0,0.00016422,2]
[326575972,1715116240649,-816.62,0.00016422,2]
[326575973,1715116240660,-235.187238,0.00016422,2]
[326575974,1715116240670,-500.0,0.00016422,2]
[326575975,1715116240680,-235.187238,0.00016422,2]
[326575976,1715116240690,-220.696715,0.00016422,2]
[326575977,1715116240700,-220.696715,0.00016422,2]
[326575978,1715116240709,-151.0,0.00016422,2]
[326575979,1715116240719,-500.0,0.00016422,2]
[326575980,1715116240730,-500.0,0.00016422,2]
[326575981,1715116240741,-151.0,0.00016422,2]
[326575982,1715116240750,-500.0,0.00016422,2]
[326575983,1715116240762,-342.055948,0.00016422,2]
[326575984,1715116240773,-151.0,0.00016422,2]
[326575985,1715116240783,-342.055948,0.00016422,2]
[326575986,1715116240794,-151.0,0.00016422,2]
[326575987,1715116240804,-500.0,0.00016422,2]
[326575988,1715116240815,-151.0,0.00016422,2]
[326575989,1715116240828,-151.0,0.00016422,2]
[326575990,1715116240839,-1318.39,0.00016422,2]
[326575991,1715116240849,-1318.39,0.00016422,2]
[326575992,1715116240860,-4892.91,0.00016422,2]
[326575993,1715116240872,-151.0,0.00016422,2]
[326575994,1715116240882,-500.0,0.00016422,2]
[326575995,1715116240893,-500.0,0.00016422,2]
[326575996,1715116240905,-500.0,0.00016423,2]
[326575997,1715116240917,-500.0,0.00016423,2]
[326575998,1715116240928,-500.0,0.00016423,2]
[326575999,1715116241069,-546.69,0.00016423,2]
[326576000,1715116241080,-500.0,0.00016423,2]
[326576001,1715116241092,-500.0,0.00016423,2]
[326576002,1715116241107,-500.0,0.00016423,2]
[326576003,1715116241117,-500.0,0.00016423,2]
[326576004,1715116241129,-500.0,0.00016423,2]
[326576005,1715116241139,-500.0,0.00016423,2]
[326576006,1715116241148,-500.0,0.00016423,2]
[326576007,1715116241158,-500.0,0.00016423,2]
[326576008,1715116241169,-500.0,0.00016423,2]
[326576009,1715116241179,-500.0,0.00016423,2]
[326576010,1715116241189,-521.28830119,0.00016423,2]
[326576011,1715116241199,-500.0,0.00016423,2]
[326576012,1715116241209,-500.0,0.00016423,2]
[326576013,1715116241220,-436.58808931,0.00016423,2]
[326576014,1715116241230,-500.0,0.00016423,2]
[326576015,1715116241240,-500.0,0.00016423,2]
[326576016,1715116241251,-500.0,0.00016423,2]
[326576017,1715116241261,-500.0,0.00016423,2]
[326576018,1715116241271,-500.0,0.00016423,2]
[326576019,1715116241281,-500.0,0.00016423,2]
[326576020,1715116241292,-500.0,0.00016423,2]
[326576021,1715116241302,-500.0,0.00016423,2]
[326576022,1715116241312,-418.36068947,0.00016423,2]
[326576023,1715116241322,-500.0,0.00016423,2]
[326576024,1715116241334,-500.0,0.00016423,2]
[326576025,1715116241344,-501.74789673,0.00016423,2]
[326576026,1715116241354,-500.0,0.00016423,2]
[326576027,1715116241368,-500.0,0.00016423,2]
[326576028,1715116241378,-500.0,0.00016423,2]
[326576029,1715116241388,-500.0,0.00016423,2]
[326576032,1715116241398,-500.0,0.00016423,2]
[326576034,1715116241408,-500.0,0.00016423,2]
[326576036,1715116241420,-500.0,0.00016423,2]
[326576038,1715116241430,-500.0,0.00016423,2]
[326576040,1715116241440,-500.0,0.00016423,2]
[326576043,1715116241450,-500.0,0.00016423,2]
[326576045,1715116241460,-500.0,0.00016423,2]
[326576047,1715116241470,-500.0,0.00016423,2]
[326576049,1715116241481,-500.0,0.00016423,2]
[326576051,1715116241490,-500.0,0.00016423,2]
[326576053,1715116241500,-231.99606673,0.00016423,2]
[326576055,1715116241510,-500.0,0.00016423,2]
[326576056,1715116241520,-500.0,0.00016423,2]
[326576058,1715116241530,-500.0,0.00016423,2]
[326576060,1715116241540,-298.78266163,0.00016423,2]
[326576062,1715116241549,-500.0,0.00016423,2]
[326576064,1715116241559,-500.0,0.00016423,2]
[326576066,1715116241569,-503.42013614,0.00016423,2]
[326576068,1715116241579,-500.0,0.00016423,2]
[326576070,1715116241590,-500.0,0.00016423,2]
[326576072,1715116241600,-500.0,0.00016423,2]
[326576074,1715116241611,-500.0,0.00016423,2]
[326576076,1715116241621,-500.84,0.00016423,2]
[326576078,1715116241631,-500.0,0.00016423,2]
[326576080,1715116241641,-500.0,0.00016423,2]
[326576082,1715116241651,-500.0,0.00016423,2]
[326576084,1715116241661,-500.0,0.00016423,2]
[326576086,1715116241671,-500.9107442,0.00016423,2]
[326576088,1715116241681,-500.0,0.00016423,2]
[326576090,1715116241692,-500.0,0.00016423,2]
[326576092,1715116241702,-500.0,0.00016423,2]
[326576094,1715116241712,-500.0,0.00016423,2]
[326576096,1715116241723,-500.0,0.00016423,2]
[326576098,1715116241733,-500.0,0.00016423,2]
[326576100,1715116241743,-500.0,0.00016423,2]
[326576102,1715116241753,-500.0,0.00016423,2]
[326576104,1715116241763,-500.0,0.00016423,2]
[326576106,1715116241773,-500.0,0.00016423,2]
[326576108,1715116241783,-500.0,0.00016423,2]
[326576110,1715116241793,-500.0,0.00016423,2]
[326576112,1715116241803,-424.36027347,0.00016423,2]
[326576114,1715116241813,-500.0,0.00016423,2]
[326576116,1715116241826,-500.0,0.00016423,2]
[326576118,1715116241836,-500.0,0.00016423,2]
[326576120,1715116241847,-500.0,0.00016423,2]
[326576122,1715116241857,-500.0,0.00016423,2]
[326576124,1715116241867,-500.0,0.00016423,2]
[326576126,1715116241877,-500.0,0.00016423,2]
[326576128,1715116241888,-375.32091773,0.00016423,2]
[326576130,1715116241906,-500.0,0.00016423,2]
[326576132,1715116241923,-500.0,0.00016423,2]
[326576134,1715116241935,-501.66716479,0.00016423,2]
[326576136,1715116241946,-500.0,0.00016423,2]
[326576138,1715116241957,-500.0,0.00016423,2]
[326576140,1715116241967,-300.0,0.00016423,2]
[326576142,1715116241977,-500.0,0.00016423,2]
[326576144,1715116241987,-500.0,0.00016423,2]
[326576146,1715116241997,-439.78439367,0.00016423,2]
[326576148,1715116242007,-500.0,0.00016423,2]
[326576150,1715116242018,-500.0,0.00016423,2]
[326576152,1715116242028,-232.31100378,0.00016423,2]
[326576154,1715116242038,-1144.63,0.00016423,2]
[326576156,1715116242048,-502.66707041,0.00016423,2]
[326576157,1715116242058,-500.0,0.00016423,2]
[326576159,1715116242070,-500.0,0.00016423,2]
[326576161,1715116242079,-241.52913422,0.00016423,2]
[326576164,1715116242093,-611.95362677,0.00016423,2]
[326576166,1715116242103,-500.0,0.00016423,2]